[Event "Titled Tuesday Blitz October 31 Early 2023"]
[White "Atakhan, Abtin"]
[Black "Yaksin, Oleg"]
[WhiteFideId "22502203"]
[BlackFideId "24105880"]
[WhiteElo "2708"]
[BlackElo "2530"]
[Result "0-1"]
[Round "4"]
[TimeControl "180+1"]
[Date "2023.10.31"]
[WhiteClock "0:00:01"]
[BlackClock "0:00:10"]
[Board "69"]

1. Nf3 {[%clk 0:03:00]}  d5 {[%clk 0:02:50]} 2. d4 {[%clk 0:03:00]}  Nf6 {[%clk 0:02:47]} 3. c4 {[%clk 0:03:01]}  e6 {[%clk 0:02:47]} 4. Nc3 {[%clk 0:03:01]}  Be7 {[%clk 0:02:47]} 5. Bf4 {[%clk 0:03:01]}  O-O {[%clk 0:02:44]} 6. e3 {[%clk 0:03:02]}  Nbd7 {[%clk 0:02:26]} 7. c5 {[%clk 0:03:01]}  Ne4 {[%clk 0:02:22]} 8. h4 {[%clk 0:02:47]}  Nxc3 {[%clk 0:02:16]} 9. bxc3 {[%clk 0:02:46]}  b6 {[%clk 0:02:10]} 10. c6 {[%clk 0:02:45]}  Nb8 {[%clk 0:02:10]} 11. Bd3 {[%clk 0:02:43]}  h6 {[%clk 0:02:02]} 12. Ne5 {[%clk 0:02:39]}  Bd6 {[%clk 0:01:46]} 13. Bxh6 {[%clk 0:02:32]}  gxh6 {[%clk 0:01:33]} 14. Qg4+ {[%clk 0:02:30]}  Kh8 {[%clk 0:01:33]} 15. Qh5 {[%clk 0:02:23]}  Kg7 {[%clk 0:01:23]} 16. Rh3 {[%clk 0:02:12]}  Bxe5 {[%clk 0:01:18]} 17. Qxe5+ {[%clk 0:01:36]}  f6 {[%clk 0:01:17]} 18. Qh5 {[%clk 0:01:18]}  Rh8 {[%clk 0:01:06]} 19. Qg6+ {[%clk 0:01:09]}  Kf8 {[%clk 0:01:05]} 20. Rf3 {[%clk 0:01:10]}  Ke7 {[%clk 0:01:06]} 21. e4 {[%clk 0:00:49]}  Rf8 {[%clk 0:01:00]} 22. e5 {[%clk 0:00:48]}  f5 {[%clk 0:00:49]} 23. Rg3 {[%clk 0:00:36]}  Nxc6 {[%clk 0:00:46]} 24. Bb5 {[%clk 0:00:33]}  Bb7 {[%clk 0:00:32]} 25. Qxh6 {[%clk 0:00:33]}  Rf7 {[%clk 0:00:32]} 26. Rg6 {[%clk 0:00:32]}  Qd7 {[%clk 0:00:29]} 27. Qg5+ {[%clk 0:00:32]}  Ke8 {[%clk 0:00:26]} 28. h5 {[%clk 0:00:30]}  a6 {[%clk 0:00:20]} 29. h6 {[%clk 0:00:19]}  Qe7 {[%clk 0:00:11]} 30. Bxc6+ {[%clk 0:00:16]}  Bxc6 {[%clk 0:00:11]} 31. Qh5 {[%clk 0:00:12]}  Kd7 {[%clk 0:00:11]} 32. Kd2 {[%clk 0:00:08]}  Rh8 {[%clk 0:00:11]} 33. a4 {[%clk 0:00:05]}  a5 {[%clk 0:00:10]} 34. Kc2 {[%clk 0:00:05]}  Rfh7 {[%clk 0:00:10]} 35. Kb2 {[%clk 0:00:05]}  Kc8 {[%clk 0:00:10]} 36. Rh1 {[%clk 0:00:05]}  Be8 {[%clk 0:00:10]} 37. Qg5 {[%clk 0:00:04]}  Bxg6 {[%clk 0:00:10]} 38. Qxg6 {[%clk 0:00:05]}  Kd7 {[%clk 0:00:10]} 39. f3 {[%clk 0:00:05]}  Qf8 {[%clk 0:00:11]} 40. g4 {[%clk 0:00:05]}  Rxh6 {[%clk 0:00:11]} 41. Rxh6 {[%clk 0:00:05]}  Rxh6 {[%clk 0:00:11]} 42. Qg5 {[%clk 0:00:05]}  Rh2+ {[%clk 0:00:11]} 43. Kb3 {[%clk 0:00:05]}  fxg4 {[%clk 0:00:10]} 44. Qxg4 {[%clk 0:00:01]}  Rf2 {[%clk 0:00:10]} 0-1


[Site "https://www.chess.com"]

[Event "Titled Tuesday Blitz October 31 Early 2023"]
[White "Shubenkova, Veronika"]
[Black "Mndapoetzz04"]
[WhiteFideId "44124040"]
[WhiteElo "2528"]
[BlackElo "2704"]
[Result "1-0"]
[Round "4"]
[TimeControl "180+1"]
[Date "2023.10.31"]
[WhiteClock "0:00:05"]
[BlackClock "0:00:00"]
[Board "71"]

1. e4 {[%clk 0:03:00]}  c5 {[%clk 0:02:49]} 2. Nc3 {[%clk 0:03:00]}  Nc6 {[%clk 0:02:49]} 3. g3 {[%clk 0:03:01]}  g6 {[%clk 0:02:49]} 4. Bg2 {[%clk 0:03:01]}  Bg7 {[%clk 0:02:49]} 5. d3 {[%clk 0:03:02]}  d6 {[%clk 0:02:49]} 6. f4 {[%clk 0:03:02]}  e6 {[%clk 0:02:42]} 7. Nf3 {[%clk 0:03:02]}  Nge7 {[%clk 0:02:39]} 8. O-O {[%clk 0:03:02]}  O-O {[%clk 0:02:40]} 9. Rb1 {[%clk 0:03:02]}  Nd4 {[%clk 0:02:40]} 10. Ne2 {[%clk 0:03:02]}  Nec6 {[%clk 0:02:35]} 11. c3 {[%clk 0:03:01]}  Nxf3+ {[%clk 0:02:32]} 12. Bxf3 {[%clk 0:03:02]}  Rb8 {[%clk 0:02:31]} 13. Be3 {[%clk 0:03:02]}  b5 {[%clk 0:02:30]} 14. Bg2 {[%clk 0:03:00]}  b4 {[%clk 0:02:20]} 15. e5 {[%clk 0:03:00]}  Ne7 {[%clk 0:02:08]} 16. cxb4 {[%clk 0:02:50]}  Rxb4 {[%clk 0:02:03]} 17. a3 {[%clk 0:02:48]}  Rb8 {[%clk 0:02:00]} 18. exd6 {[%clk 0:02:44]}  Qxd6 {[%clk 0:01:56]} 19. Qc2 {[%clk 0:02:44]}  Ba6 {[%clk 0:01:40]} 20. Qxc5 {[%clk 0:02:25]}  Qxd3 {[%clk 0:01:31]} 21. Bf2 {[%clk 0:01:52]}  Qxe2 {[%clk 0:00:41]} 22. Qxe7 {[%clk 0:01:50]}  Bd3 {[%clk 0:00:41]} 23. Rbc1 {[%clk 0:01:42]}  Rxb2 {[%clk 0:00:40]} 24. Qxa7 {[%clk 0:01:36]}  Ra2 {[%clk 0:00:17]} 25. Rfe1 {[%clk 0:01:32]}  Qb2 {[%clk 0:00:17]} 26. Qb6 {[%clk 0:00:36]}  Qxb6 {[%clk 0:00:09]} 27. Bxb6 {[%clk 0:00:36]}  Bb2 {[%clk 0:00:09]} 28. Rcd1 {[%clk 0:00:34]}  Bc2 {[%clk 0:00:09]} 29. Rd7 {[%clk 0:00:31]}  Bxa3 {[%clk 0:00:09]} 30. g4 {[%clk 0:00:24]}  Rb8 {[%clk 0:00:09]} 31. Bf2 {[%clk 0:00:22]}  Ba4 {[%clk 0:00:09]} 32. Ra7 {[%clk 0:00:20]}  Rbb2 {[%clk 0:00:09]} 33. Rxa4 {[%clk 0:00:15]}  Rxf2 {[%clk 0:00:09]} 34. Ra8+ {[%clk 0:00:14]}  Kg7 {[%clk 0:00:09]} 35. Bc6 {[%clk 0:00:12]}  Bc5 {[%clk 0:00:04]} 36. Rxa2 {[%clk 0:00:10]}  Rxa2+ {[%clk 0:00:03]} 37. Kh1 {[%clk 0:00:10]}  Bd6 {[%clk 0:00:04]} 38. Rf1 {[%clk 0:00:09]}  f5 {[%clk 0:00:04]} 39. gxf5 {[%clk 0:00:09]}  exf5 {[%clk 0:00:05]} 40. Bd5 {[%clk 0:00:08]}  Rd2 {[%clk 0:00:05]} 41. Bg2 {[%clk 0:00:08]}  Rd4 {[%clk 0:00:05]} 42. h3 {[%clk 0:00:08]}  Bxf4 {[%clk 0:00:05]} 43. Rb1 {[%clk 0:00:08]}  h5 {[%clk 0:00:03]} 44. Kg1 {[%clk 0:00:08]}  Be3+ {[%clk 0:00:03]} 45. Kf1 {[%clk 0:00:08]}  g5 {[%clk 0:00:04]} 46. Rb7+ {[%clk 0:00:08]}  Kf6 {[%clk 0:00:04]} 47. Rb6+ {[%clk 0:00:08]}  Ke5 {[%clk 0:00:05]} 48. Rh6 {[%clk 0:00:06]}  h4 {[%clk 0:00:05]} 49. Ra6 {[%clk 0:00:05]}  Kf4 {[%clk 0:00:05]} 50. Bb7 {[%clk 0:00:04]}  g4 {[%clk 0:00:05]} 51. hxg4 {[%clk 0:00:04]}  fxg4 {[%clk 0:00:05]} 52. Rf6+ {[%clk 0:00:03]}  Kg3 {[%clk 0:00:05]} 53. Rg6 {[%clk 0:00:04]}  h3 {[%clk 0:00:04]} 54. Bc8 {[%clk 0:00:04]}  h2 {[%clk 0:00:02]} 55. Bb7 {[%clk 0:00:04]}  Rf4+ {[%clk 0:00:03]} 56. Ke2 {[%clk 0:00:04]}  Bc5 {[%clk 0:00:00]} 57. Rh6 {[%clk 0:00:05]} 1-0


[Site "https://www.chess.com"]

[Event "Titled Tuesday Blitz October 31 Early 2023"]
[White "Demin, Vladimir"]
[Black "Nagare Kaivalya Sandip"]
[WhiteFideId "4167457"]
[BlackFideId "25957929"]
[WhiteElo "2526"]
[BlackElo "2696"]
[Result "0-1"]
[Round "4"]
[TimeControl "180+1"]
[Date "2023.10.31"]
[WhiteClock "0:00:12"]
[BlackClock "0:01:56"]
[Board "72"]

1. d4 {[%clk 0:02:52]}  Nf6 {[%clk 0:02:59]} 2. Nc3 {[%clk 0:02:52]}  g6 {[%clk 0:03:00]} 3. e4 {[%clk 0:02:51]}  d6 {[%clk 0:03:00]} 4. Nf3 {[%clk 0:02:51]}  Bg7 {[%clk 0:03:01]} 5. Be3 {[%clk 0:02:50]}  O-O {[%clk 0:03:01]} 6. Qd2 {[%clk 0:02:50]}  c6 {[%clk 0:03:01]} 7. Bh6 {[%clk 0:02:48]}  b5 {[%clk 0:03:01]} 8. Bd3 {[%clk 0:02:47]}  b4 {[%clk 0:03:01]} 9. Ne2 {[%clk 0:02:45]}  Bg4 {[%clk 0:03:02]} 10. Bxg7 {[%clk 0:02:38]}  Kxg7 {[%clk 0:03:02]} 11. Qxb4 {[%clk 0:02:38]}  Bxf3 {[%clk 0:03:00]} 12. gxf3 {[%clk 0:02:38]}  Nbd7 {[%clk 0:03:01]} 13. O-O-O {[%clk 0:02:32]}  Rb8 {[%clk 0:03:00]} 14. Qc3 {[%clk 0:02:32]}  Qb6 {[%clk 0:02:59]} 15. Bc4 {[%clk 0:02:27]}  d5 {[%clk 0:02:55]} 16. Bb3 {[%clk 0:02:07]}  dxe4 {[%clk 0:02:53]} 17. fxe4 {[%clk 0:01:54]}  Nxe4 {[%clk 0:02:52]} 18. Qe3 {[%clk 0:01:51]}  Ndf6 {[%clk 0:02:52]} 19. Ng3 {[%clk 0:01:43]}  Nd6 {[%clk 0:02:47]} 20. Rhg1 {[%clk 0:01:38]}  a5 {[%clk 0:02:44]} 21. Qxe7 {[%clk 0:01:31]}  Rfd8 {[%clk 0:02:40]} 22. Nf5+ {[%clk 0:01:23]}  Nxf5 {[%clk 0:02:37]} 23. Qxf7+ {[%clk 0:01:23]}  Kh6 {[%clk 0:02:34]} 24. Qxf6 {[%clk 0:01:23]}  Rxd4 {[%clk 0:02:33]} 25. Qg5+ {[%clk 0:01:16]}  Kg7 {[%clk 0:02:33]} 26. Qxf5 {[%clk 0:01:13]}  Rxd1+ {[%clk 0:02:32]} 27. Kxd1 {[%clk 0:01:13]}  Qd4+ {[%clk 0:02:30]} 28. Kc1 {[%clk 0:01:11]}  Rd8 {[%clk 0:02:29]} 29. Qd3 {[%clk 0:01:06]}  Qxf2 {[%clk 0:02:24]} 30. Qc3+ {[%clk 0:01:04]}  Kh6 {[%clk 0:02:22]} 31. Rd1 {[%clk 0:00:52]}  Qf4+ {[%clk 0:02:16]} 32. Qd2 {[%clk 0:00:38]}  Rxd2 {[%clk 0:02:15]} 33. Rxd2 {[%clk 0:00:39]}  a4 {[%clk 0:02:12]} 34. Be6 {[%clk 0:00:38]}  Qe3 {[%clk 0:02:12]} 35. Bd7 {[%clk 0:00:36]}  Qe4 {[%clk 0:02:06]} 36. c3 {[%clk 0:00:34]}  c5 {[%clk 0:02:05]} 37. h3 {[%clk 0:00:31]}  Kg5 {[%clk 0:02:04]} 38. Bb5 {[%clk 0:00:20]}  h5 {[%clk 0:02:02]} 39. b4 {[%clk 0:00:19]}  cxb4 {[%clk 0:02:00]} 40. c4 {[%clk 0:00:18]}  b3 {[%clk 0:01:55]} 41. axb3 {[%clk 0:00:17]}  a3 {[%clk 0:01:55]} 42. c5 {[%clk 0:00:15]}  Qe1+ {[%clk 0:01:55]} 43. Kc2 {[%clk 0:00:12]}  a2 {[%clk 0:01:56]} 0-1


[Site "https://www.chess.com"]

[Event "Titled Tuesday Blitz October 31 Early 2023"]
[White "Avazkhonov, Alikhon"]
[Black "Preotu, Razvan"]
[WhiteFideId "14208504"]
[BlackFideId "2613280"]
[WhiteElo "2501"]
[BlackElo "2689"]
[Result "0-1"]
[Round "4"]
[TimeControl "180+1"]
[Date "2023.10.31"]
[WhiteClock "0:00:16"]
[BlackClock "0:00:55"]
[Board "74"]

1. d4 {[%clk 0:03:00]}  Nf6 {[%clk 0:02:55]} 2. c4 {[%clk 0:03:01]}  g6 {[%clk 0:02:56]} 3. Nc3 {[%clk 0:03:01]}  d5 {[%clk 0:02:57]} 4. cxd5 {[%clk 0:02:59]}  Nxd5 {[%clk 0:02:58]} 5. e4 {[%clk 0:02:59]}  Nxc3 {[%clk 0:02:58]} 6. bxc3 {[%clk 0:03:00]}  Bg7 {[%clk 0:02:58]} 7. Be3 {[%clk 0:03:00]}  c5 {[%clk 0:02:59]} 8. Qd2 {[%clk 0:03:01]}  cxd4 {[%clk 0:02:50]} 9. cxd4 {[%clk 0:03:02]}  Nc6 {[%clk 0:02:50]} 10. Nf3 {[%clk 0:03:02]}  Bg4 {[%clk 0:02:49]} 11. e5 {[%clk 0:02:54]}  Bxf3 {[%clk 0:02:29]} 12. gxf3 {[%clk 0:02:55]}  O-O {[%clk 0:02:28]} 13. Bg2 {[%clk 0:02:54]}  e6 {[%clk 0:02:04]} 14. f4 {[%clk 0:02:44]}  Qh4 {[%clk 0:02:03]} 15. O-O {[%clk 0:02:40]}  Rad8 {[%clk 0:01:44]} 16. Qb2 {[%clk 0:02:40]}  Bh6 {[%clk 0:01:31]} 17. f5 {[%clk 0:02:06]}  Nxd4 {[%clk 0:01:27]} 18. Bxh6 {[%clk 0:01:38]}  Qxh6 {[%clk 0:01:28]} 19. fxe6 {[%clk 0:01:36]}  Nxe6 {[%clk 0:01:27]} 20. Qxb7 {[%clk 0:01:35]}  Rd2 {[%clk 0:01:11]} 21. Qxa7 {[%clk 0:01:27]}  Nf4 {[%clk 0:01:00]} 22. Qb7 {[%clk 0:01:10]}  Rfd8 {[%clk 0:00:57]} 23. a4 {[%clk 0:00:59]}  Qg5 {[%clk 0:00:57]} 24. a5 {[%clk 0:00:16]}  R8d5 {[%clk 0:00:55]} 0-1


[Site "https://www.chess.com"]

[Event "Titled Tuesday Blitz October 31 Early 2023"]
[White "Maris, Ivo"]
[Black "BashirovKemal"]
[WhiteFideId "1028146"]
[WhiteElo "2484"]
[BlackElo "2676"]
[Result "1-0"]
[Round "4"]
[TimeControl "180+1"]
[Date "2023.10.31"]
[WhiteClock "0:02:00"]
[BlackClock "0:00:09"]
[Board "76"]

1. e3 {[%clk 0:03:00]}  d5 {[%clk 0:02:57]} 2. b3 {[%clk 0:02:59]}  Nf6 {[%clk 0:02:53]} 3. Bb2 {[%clk 0:03:00]}  e6 {[%clk 0:02:54]} 4. g4 {[%clk 0:02:59]}  Be7 {[%clk 0:02:54]} 5. g5 {[%clk 0:03:00]}  Ne4 {[%clk 0:02:46]} 6. d3 {[%clk 0:02:59]}  Nd6 {[%clk 0:02:44]} 7. h4 {[%clk 0:03:00]}  O-O {[%clk 0:02:42]} 8. Nd2 {[%clk 0:02:59]}  f6 {[%clk 0:02:42]} 9. f4 {[%clk 0:02:58]}  Nf5 {[%clk 0:02:39]} 10. Qf3 {[%clk 0:02:58]}  e5 {[%clk 0:02:34]} 11. O-O-O {[%clk 0:02:55]}  Nc6 {[%clk 0:02:31]} 12. e4 {[%clk 0:02:55]}  Nfd4 {[%clk 0:02:30]} 13. Qg2 {[%clk 0:02:54]}  exf4 {[%clk 0:02:27]} 14. exd5 {[%clk 0:02:54]}  f3 {[%clk 0:01:57]} 15. Ngxf3 {[%clk 0:02:53]}  Nxf3 {[%clk 0:01:54]} 16. dxc6 {[%clk 0:02:45]}  Nxd2 {[%clk 0:01:21]} 17. Rxd2 {[%clk 0:02:43]}  bxc6 {[%clk 0:01:18]} 18. g6 {[%clk 0:02:44]}  h6 {[%clk 0:01:15]} 19. Qxc6 {[%clk 0:02:42]}  Rb8 {[%clk 0:01:14]} 20. d4 {[%clk 0:02:35]}  Bb7 {[%clk 0:01:11]} 21. Qe6+ {[%clk 0:02:35]}  Kh8 {[%clk 0:01:11]} 22. Bg2 {[%clk 0:02:30]}  f5 {[%clk 0:01:08]} 23. Bxb7 {[%clk 0:02:27]}  Rxb7 {[%clk 0:01:09]} 24. d5 {[%clk 0:02:27]}  Bd6 {[%clk 0:01:04]} 25. Rf2 {[%clk 0:02:16]}  f4 {[%clk 0:00:59]} 26. Qg4 {[%clk 0:02:16]}  Qe7 {[%clk 0:00:50]} 27. Re2 {[%clk 0:02:14]}  Qd8 {[%clk 0:00:50]} 28. Qh5 {[%clk 0:02:12]}  Kg8 {[%clk 0:00:47]} 29. Rhe1 {[%clk 0:02:12]}  f3 {[%clk 0:00:45]} 30. Rf2 {[%clk 0:02:09]}  Bg3 {[%clk 0:00:28]} 31. Rxf3 {[%clk 0:02:06]}  Bxe1 {[%clk 0:00:28]} 32. Rf7 {[%clk 0:02:06]}  Rxf7 {[%clk 0:00:18]} 33. gxf7+ {[%clk 0:02:07]}  Kf8 {[%clk 0:00:18]} 34. Qg6 {[%clk 0:02:07]}  Ke7 {[%clk 0:00:16]} 35. Bxg7 {[%clk 0:02:05]}  Rb6 {[%clk 0:00:09]} 36. f8=Q+ {[%clk 0:02:00]} 1-0


[Site "https://www.chess.com"]

[Event "Titled Tuesday Blitz October 31 Early 2023"]
[White "Buchenau, Frank"]
[Black "Sadykov, Ramil"]
[WhiteFideId "4604350"]
[BlackFideId "24113590"]
[WhiteElo "2460"]
[BlackElo "2673"]
[Result "0-1"]
[Round "4"]
[TimeControl "180+1"]
[Date "2023.10.31"]
[WhiteClock "0:00:00"]
[BlackClock "0:00:02"]
[Board "78"]

1. e4 {[%clk 0:02:58]}  c6 {[%clk 0:02:59]} 2. Nf3 {[%clk 0:02:57]}  d5 {[%clk 0:02:59]} 3. Nc3 {[%clk 0:02:57]}  dxe4 {[%clk 0:02:55]} 4. Nxe4 {[%clk 0:02:57]}  Bg4 {[%clk 0:02:55]} 5. h3 {[%clk 0:02:50]}  Bxf3 {[%clk 0:02:53]} 6. Qxf3 {[%clk 0:02:50]}  Nd7 {[%clk 0:02:54]} 7. d3 {[%clk 0:02:44]}  Ngf6 {[%clk 0:02:52]} 8. Bd2 {[%clk 0:02:38]}  Qb6 {[%clk 0:02:49]} 9. O-O-O {[%clk 0:02:37]}  e6 {[%clk 0:02:49]} 10. Kb1 {[%clk 0:02:27]}  a5 {[%clk 0:02:45]} 11. Be3 {[%clk 0:02:18]}  Qb4 {[%clk 0:02:13]} 12. Bd2 {[%clk 0:02:05]}  Qb5 {[%clk 0:02:01]} 13. c4 {[%clk 0:01:56]}  Qa6 {[%clk 0:01:55]} 14. Bc3 {[%clk 0:01:50]}  Be7 {[%clk 0:01:53]} 15. d4 {[%clk 0:01:42]}  Nxe4 {[%clk 0:01:50]} 16. Qxe4 {[%clk 0:01:41]}  Nf6 {[%clk 0:01:51]} 17. Qf3 {[%clk 0:01:33]}  O-O {[%clk 0:01:41]} 18. c5 {[%clk 0:01:17]}  b5 {[%clk 0:01:35]} 19. Bd3 {[%clk 0:01:08]}  Qb7 {[%clk 0:01:32]} 20. g4 {[%clk 0:00:57]}  Nd5 {[%clk 0:01:25]} 21. Bd2 {[%clk 0:00:57]}  g6 {[%clk 0:01:08]} 22. h4 {[%clk 0:00:53]}  Bf6 {[%clk 0:01:05]} 23. Qe4 {[%clk 0:00:47]}  b4 {[%clk 0:00:58]} 24. g5 {[%clk 0:00:42]}  Bg7 {[%clk 0:00:57]} 25. h5 {[%clk 0:00:41]}  Nc3+ {[%clk 0:00:57]} 26. Bxc3 {[%clk 0:00:33]}  bxc3 {[%clk 0:00:58]} 27. b3 {[%clk 0:00:30]}  a4 {[%clk 0:00:58]} 28. Bc4 {[%clk 0:00:17]}  axb3 {[%clk 0:00:53]} 29. axb3 {[%clk 0:00:13]}  Qa7 {[%clk 0:00:40]} 30. Kc2 {[%clk 0:00:13]}  Qa2+ {[%clk 0:00:29]} 31. Kxc3 {[%clk 0:00:13]}  Rfd8 {[%clk 0:00:25]} 32. hxg6 {[%clk 0:00:09]}  hxg6 {[%clk 0:00:26]} 33. Bxe6 {[%clk 0:00:08]}  fxe6 {[%clk 0:00:11]} 34. Qxe6+ {[%clk 0:00:08]}  Kf8 {[%clk 0:00:12]} 35. Rd3 {[%clk 0:00:08]}  Rxd4 {[%clk 0:00:05]} 36. Rxd4 {[%clk 0:00:06]}  Bxd4+ {[%clk 0:00:04]} 37. Kxd4 {[%clk 0:00:06]}  Qxf2+ {[%clk 0:00:02]} 38. Kc4 {[%clk 0:00:03]}  Qc2+ {[%clk 0:00:02]} 39. Kd4 {[%clk 0:00:00]}  Rd8+ {[%clk 0:00:02]} 0-1


[Site "https://www.chess.com"]

[Event "Titled Tuesday Blitz October 31 Early 2023"]
[White "Luong Phuong Hanh"]
[Black "Bao, Qilin"]
[WhiteFideId "12401013"]
[BlackFideId "8605750"]
[WhiteElo "2415"]
[BlackElo "2662"]
[Result "0-1"]
[Round "4"]
[TimeControl "180+1"]
[Date "2023.10.31"]
[WhiteClock "0:00:00"]
[BlackClock "0:00:16"]
[Board "81"]

1. d4 {[%clk 0:03:00]}  Nf6 {[%clk 0:02:59]} 2. Nf3 {[%clk 0:02:59]}  b6 {[%clk 0:02:58]} 3. e3 {[%clk 0:02:58]}  Bb7 {[%clk 0:02:57]} 4. Bd3 {[%clk 0:02:58]}  g6 {[%clk 0:02:55]} 5. O-O {[%clk 0:02:58]}  Bg7 {[%clk 0:02:56]} 6. c4 {[%clk 0:02:59]}  O-O {[%clk 0:02:50]} 7. Nc3 {[%clk 0:02:58]}  d5 {[%clk 0:02:50]} 8. b3 {[%clk 0:02:58]}  e6 {[%clk 0:02:49]} 9. Bb2 {[%clk 0:02:58]}  Ne4 {[%clk 0:02:47]} 10. Rc1 {[%clk 0:02:54]}  Nd7 {[%clk 0:02:46]} 11. cxd5 {[%clk 0:02:52]}  exd5 {[%clk 0:02:46]} 12. Nd2 {[%clk 0:02:45]}  f5 {[%clk 0:02:44]} 13. Qe2 {[%clk 0:02:15]}  a6 {[%clk 0:02:44]} 14. Rfd1 {[%clk 0:02:01]}  Kh8 {[%clk 0:02:41]} 15. Nf3 {[%clk 0:01:58]}  Qe7 {[%clk 0:02:20]} 16. Nb1 {[%clk 0:01:46]}  c6 {[%clk 0:02:13]} 17. Ba3 {[%clk 0:01:46]}  c5 {[%clk 0:02:09]} 18. dxc5 {[%clk 0:01:44]}  bxc5 {[%clk 0:02:07]} 19. Nfd2 {[%clk 0:01:38]}  Rfc8 {[%clk 0:02:01]} 20. Nf3 {[%clk 0:01:26]}  Qf7 {[%clk 0:01:35]} 21. Bb2 {[%clk 0:01:12]}  Ndf6 {[%clk 0:01:26]} 22. Bxe4 {[%clk 0:01:08]}  fxe4 {[%clk 0:01:20]} 23. Ng5 {[%clk 0:01:06]}  Qe7 {[%clk 0:01:07]} 24. Nd2 {[%clk 0:01:05]}  h6 {[%clk 0:01:04]} 25. Nh3 {[%clk 0:01:05]}  g5 {[%clk 0:01:04]} 26. Kh1 {[%clk 0:01:04]}  a5 {[%clk 0:01:01]} 27. Nf1 {[%clk 0:00:59]}  Ba6 {[%clk 0:01:01]} 28. Qe1 {[%clk 0:00:54]}  Bd3 {[%clk 0:01:01]} 29. Ng3 {[%clk 0:00:52]}  Qd7 {[%clk 0:00:47]} 30. f4 {[%clk 0:00:33]}  g4 {[%clk 0:00:26]} 31. Nf2 {[%clk 0:00:33]}  c4 {[%clk 0:00:26]} 32. bxc4 {[%clk 0:00:32]}  dxc4 {[%clk 0:00:26]} 33. Bxf6 {[%clk 0:00:26]}  Bxf6 {[%clk 0:00:25]} 34. Ngxe4 {[%clk 0:00:26]}  Bb2 {[%clk 0:00:24]} 35. Nxd3 {[%clk 0:00:24]}  cxd3 {[%clk 0:00:23]} 36. Rxc8+ {[%clk 0:00:25]}  Rxc8 {[%clk 0:00:24]} 37. Qxa5 {[%clk 0:00:18]}  Qe6 {[%clk 0:00:20]} 38. Qb4 {[%clk 0:00:14]}  Bg7 {[%clk 0:00:19]} 39. g3 {[%clk 0:00:08]}  Rc4 {[%clk 0:00:19]} 40. Qb8+ {[%clk 0:00:07]}  Kh7 {[%clk 0:00:19]} 41. Nf2 {[%clk 0:00:06]}  Qxe3 {[%clk 0:00:19]} 42. Kg1 {[%clk 0:00:00]}  Rc2 {[%clk 0:00:16]} 0-1


[Site "https://www.chess.com"]

[Event "Titled Tuesday Blitz October 31 Early 2023"]
[White "La Villa Rivas, Marlon Javier"]
[Black "Parkhov, Yair"]
[WhiteFideId "3519546"]
[BlackFideId "2813408"]
[WhiteElo "2402"]
[BlackElo "2662"]
[Result "0-1"]
[Round "4"]
[TimeControl "180+1"]
[Date "2023.10.31"]
[WhiteClock "0:00:08"]
[BlackClock "0:00:15"]
[Board "82"]

1. e4 {[%clk 0:02:58]}  c6 {[%clk 0:02:58]} 2. c4 {[%clk 0:02:56]}  g6 {[%clk 0:02:57]} 3. Nc3 {[%clk 0:02:54]}  Bg7 {[%clk 0:02:57]} 4. d4 {[%clk 0:02:54]}  d6 {[%clk 0:02:56]} 5. Nf3 {[%clk 0:02:53]}  Nf6 {[%clk 0:02:56]} 6. Be2 {[%clk 0:02:53]}  O-O {[%clk 0:02:55]} 7. O-O {[%clk 0:02:52]}  Bg4 {[%clk 0:02:50]} 8. h3 {[%clk 0:02:51]}  Bxf3 {[%clk 0:02:49]} 9. Bxf3 {[%clk 0:02:52]}  Nbd7 {[%clk 0:02:50]} 10. Bg5 {[%clk 0:02:48]}  e5 {[%clk 0:02:46]} 11. d5 {[%clk 0:02:43]}  cxd5 {[%clk 0:02:24]} 12. Nxd5 {[%clk 0:02:36]}  Nc5 {[%clk 0:02:21]} 13. Re1 {[%clk 0:02:25]}  Ne6 {[%clk 0:02:18]} 14. Be3 {[%clk 0:02:23]}  Nxd5 {[%clk 0:02:11]} 15. Qxd5 {[%clk 0:02:21]}  Nd4 {[%clk 0:02:07]} 16. Bxd4 {[%clk 0:02:07]}  exd4 {[%clk 0:02:06]} 17. b3 {[%clk 0:02:03]}  Qc7 {[%clk 0:02:02]} 18. Rad1 {[%clk 0:02:02]}  a6 {[%clk 0:01:55]} 19. Bg4 {[%clk 0:01:52]}  Rad8 {[%clk 0:01:33]} 20. f4 {[%clk 0:01:51]}  Rfe8 {[%clk 0:01:30]} 21. h4 {[%clk 0:01:29]}  Qc6 {[%clk 0:01:23]} 22. h5 {[%clk 0:01:08]}  Qxd5 {[%clk 0:01:12]} 23. cxd5 {[%clk 0:01:05]}  Re7 {[%clk 0:01:13]} 24. Rc1 {[%clk 0:01:03]}  Rde8 {[%clk 0:01:09]} 25. Bf3 {[%clk 0:00:56]}  f5 {[%clk 0:00:47]} 26. hxg6 {[%clk 0:00:55]}  fxe4 {[%clk 0:00:38]} 27. gxh7+ {[%clk 0:00:55]}  Kh8 {[%clk 0:00:39]} 28. Bh5 {[%clk 0:00:50]}  Rf8 {[%clk 0:00:30]} 29. Bg6 {[%clk 0:00:46]}  d3 {[%clk 0:00:18]} 30. Rxe4 {[%clk 0:00:39]}  Rxe4 {[%clk 0:00:18]} 31. Bxe4 {[%clk 0:00:40]}  Bd4+ {[%clk 0:00:18]} 32. Kf1 {[%clk 0:00:36]}  Rxf4+ {[%clk 0:00:17]} 33. Bf3 {[%clk 0:00:36]}  d2 {[%clk 0:00:17]} 34. Rd1 {[%clk 0:00:33]}  Bc3 {[%clk 0:00:16]} 35. Ke2 {[%clk 0:00:33]}  Kxh7 {[%clk 0:00:15]} 36. Kd3 {[%clk 0:00:32]}  Bb4 {[%clk 0:00:15]} 37. Rh1+ {[%clk 0:00:31]}  Kg7 {[%clk 0:00:15]} 38. Bd1 {[%clk 0:00:31]}  a5 {[%clk 0:00:08]} 39. g4 {[%clk 0:00:31]}  Rf7 {[%clk 0:00:08]} 40. g5 {[%clk 0:00:30]}  Re7 {[%clk 0:00:08]} 41. Be2 {[%clk 0:00:20]}  Rc7 {[%clk 0:00:07]} 42. Ke4 {[%clk 0:00:16]}  Rc1 {[%clk 0:00:06]} 43. Bd1 {[%clk 0:00:16]}  Rc7 {[%clk 0:00:04]} 44. Kf5 {[%clk 0:00:14]}  Re7 {[%clk 0:00:04]} 45. g6 {[%clk 0:00:05]}  Re5+ {[%clk 0:00:04]} 46. Kf4 {[%clk 0:00:03]}  Re1 {[%clk 0:00:05]} 47. Rh7+ {[%clk 0:00:03]}  Kf6 {[%clk 0:00:05]} 48. Bc2 {[%clk 0:00:03]}  Rf1+ {[%clk 0:00:05]} 49. Kg4 {[%clk 0:00:03]}  d1=Q+ {[%clk 0:00:05]} 50. Bxd1 {[%clk 0:00:01]}  Rxd1 {[%clk 0:00:06]} 51. g7 {[%clk 0:00:02]}  Rg1+ {[%clk 0:00:06]} 52. Kh5 {[%clk 0:00:02]}  Rxg7 {[%clk 0:00:07]} 53. Rh6+ {[%clk 0:00:02]}  Kf5 {[%clk 0:00:08]} 54. Re6 {[%clk 0:00:02]}  Rh7+ {[%clk 0:00:08]} 55. Rh6 {[%clk 0:00:01]}  Rxh6+ {[%clk 0:00:08]} 56. Kxh6 {[%clk 0:00:02]}  Ke5 {[%clk 0:00:09]} 57. Kg6 {[%clk 0:00:03]}  Kxd5 {[%clk 0:00:10]} 58. Kf6 {[%clk 0:00:04]}  Ke4 {[%clk 0:00:10]} 59. Ke6 {[%clk 0:00:04]}  d5 {[%clk 0:00:11]} 60. Kd7 {[%clk 0:00:04]}  d4 {[%clk 0:00:12]} 61. Kc7 {[%clk 0:00:04]}  d3 {[%clk 0:00:13]} 62. Kxb7 {[%clk 0:00:05]}  d2 {[%clk 0:00:13]} 63. Ka6 {[%clk 0:00:06]}  d1=Q {[%clk 0:00:14]} 64. Kb5 {[%clk 0:00:07]}  Qd5+ {[%clk 0:00:15]} 65. Ka4 {[%clk 0:00:08]}  Qc6# {[%clk 0:00:15]} 0-1


[Site "https://www.chess.com"]